[Event "ETCC Women 2013"]
[Site "Warsaw"]
[Date "2013.11.14"]
[Round "6"]
[White "Grigoryan, Meri"]
[Black "Stoeri, Laura"]
[Result "1-0"]
[ECO "A45"]
[WhiteElo "2039"]
[BlackElo "2102"]
[PlyCount "83"]
[EventDate "2013.??.??"]
[EventCountry "POL"]
[WhiteTeam "England"]
[BlackTeam "Switzerland"]
[WhiteTeamCountry "ENG"]
[BlackTeamCountry "SUI"]
[TimeControl "40/5400+30:1800+30"]

1. d4 {[%emt 0:00:00]} Nf6 {[%emt 0:00:00]} 2. Nc3 {[%emt 0:00:00]} c5 {[%emt
0:06:25]} 3. d5 {[%emt 0:01:00]} d6 {[%emt 0:01:51]} 4. e4 {[%emt 0:00:24]} g6
{[%emt 0:01:05]} 5. Nf3 {[%emt 0:00:53]} Bg7 {[%emt 0:01:49]} 6. a4 {[%emt 0:
00:08]} O-O {[%emt 0:01:06]} 7. Bc4 {[%emt 0:00:17]} Nbd7 {[%emt 0:00:44]} 8.
Bg5 {[%emt 0:04:19]} Ng4 {[%emt 0:19:09]} 9. Qd2 {[%emt 0:06:09]} Nge5 {[%emt
0:02:39]} 10. Be2 {[%emt 0:01:47]} Nxf3+ {[%emt 0:03:02]} 11. gxf3 {[%emt 0:01:
05]} Re8 {[%emt 0:05:07]} 12. h4 {[%emt 0:00:54]} a6 {[%emt 0:21:02]} 13. h5 {
[%emt 0:02:21]} Qa5 {[%emt 0:02:30]} 14. hxg6 {[%emt 0:02:49]} fxg6 {[%emt 0:
00:21]} 15. Bh6 {[%emt 0:08:14]} Bh8 {[%emt 0:01:22]} 16. f4 {[%emt 0:04:38]}
Qb4 {[%emt 0:00:36]} 17. Bg4 {[%emt 0:21:54]} Nf8 {[%emt 0:13:35]} 18. Bxc8 {
[%emt 0:08:41]} Raxc8 {[%emt 0:00:10]} 19. O-O-O {[%emt 0:09:26]} Bxc3 {[%emt
0:05:56]} 20. Qxc3 {[%emt 0:01:55]} Qxc3 {[%emt 0:00:04]} 21. bxc3 {[%emt 0:00:
01]} Nd7 {[%emt 0:00:25]} 22. a5 {[%emt 0:06:43]} c4 {[%emt 0:05:04]} 23. Rdg1
{[%emt 0:07:36]} Kf7 {[%emt 0:02:18]} 24. Bg5 {[%emt 0:01:09]} Rh8 {[%emt 0:00:
32]} 25. Kd2 {[%emt 0:01:20]} h5 {[%emt 0:01:21]} 26. Rb1 {[%emt 0:01:04]} Rc7
{[%emt 0:00:58]} 27. Rb4 {[%emt 0:00:48]} Rb8 {[%emt 0:01:15]} 28. Rhb1 {[%emt
0:00:21]} Nf6 {[%emt 0:02:04]} 29. f3 {[%emt 0:01:24]} Nh7 {[%emt 0:00:59]} 30.
Bh4 {[%emt 0:00:15]} Nf6 {[%emt 0:00:53]} 31. Ke3 {[%emt 0:00:33]} Nd7 {[%emt
0:00:03]} 32. Kd4 {[%emt 0:02:04]} Nc5 {[%emt 0:01:02]} 33. e5 {[%emt 0:01:17]}
dxe5+ {[%emt 0:00:20]} 34. fxe5 {[%emt 0:00:05]} Rbc8 {[%emt 0:00:27]} 35. Rb6
{[%emt 0:01:16]} Rg8 {[%emt 0:00:32]} 36. f4 {[%emt 0:01:10]} Rd8 {[%emt 0:00:
10]} 37. d6 {[%emt 0:00:59]} Ne6+ {[%emt 0:00:41]} 38. Ke3 {[%emt 0:00:26]} Rc5
{[%emt 0:00:14]} 39. Rxb7 {[%emt 0:00:33]} Re8 {[%emt 0:00:21]} 40. Bxe7 {
[%emt 0:00:00]} Kg8 {[%emt 0:00:00]} 41. Rg1 {[%emt 0:01:47]} Kh7 {[%emt 0:21:
12]} 42. Bf6+ {[%emt 0:01:16]} 1-0

[Event "ETCC Women 2013"]
[Site "Warsaw"]
[Date "2013.11.14"]
[Round "6"]
[White "Gronnestad, Anita"]
[Black "Klinova, Masha"]
[Result "0-1"]
[ECO "A26"]
[WhiteElo "1958"]
[BlackElo "2291"]
[PlyCount "62"]
[EventDate "2013.??.??"]
[EventCountry "POL"]
[WhiteTeam "Norway"]
[BlackTeam "Israel"]
[WhiteTeamCountry "NOR"]
[BlackTeamCountry "ISR"]
[TimeControl "40/5400+30:1800+30"]

1. c4 {[%emt 0:00:00]} e5 {[%emt 0:00:00]} 2. g3 {[%emt 0:00:00]} Nc6 {[%emt 0:
00:07]} 3. Bg2 {[%emt 0:00:04]} g6 {[%emt 0:00:34]} 4. Nc3 {[%emt 0:00:19]} Bg7
{[%emt 0:00:07]} 5. d3 {[%emt 0:00:31]} d6 {[%emt 0:00:32]} 6. e4 {[%emt 0:00:
39]} f5 {[%emt 0:01:32]} 7. Nge2 {[%emt 0:00:31]} Nf6 {[%emt 0:00:12]} 8. O-O {
[%emt 0:00:45]} O-O {[%emt 0:00:07]} 9. Nd5 {[%emt 0:01:10]} Be6 {[%emt 0:11:
17]} 10. Bg5 {[%emt 0:06:01]} Qd7 {[%emt 0:07:43]} 11. Qd2 {[%emt 0:02:31]}
Rae8 {[%emt 0:08:38]} 12. Rac1 {[%emt 0:03:44]} Nh5 {[%emt 0:07:20]} 13. f3 {
[%emt 0:02:25]} Nd4 {[%emt 0:09:42]} 14. Nxd4 {[%emt 0:16:00]} exd4 {[%emt 0:
00:17]} 15. exf5 {[%emt 0:03:57]} gxf5 {[%emt 0:04:52]} 16. f4 {[%emt 0:13:33]}
c6 {[%emt 0:04:15]} 17. Nb4 {[%emt 0:04:15]} Bf7 {[%emt 0:07:31]} 18. Nc2 {
[%emt 0:09:45]} h6 {[%emt 0:02:26]} 19. Bh4 {[%emt 0:00:23]} c5 {[%emt 0:04:42]
} 20. g4 {[%emt 0:11:40]} fxg4 {[%emt 0:01:26]} 21. f5 {[%emt 0:00:19]} Kh7 {
[%emt 0:10:05]} 22. f6 {[%emt 0:07:25]} Bh8 {[%emt 0:00:09]} 23. Rce1 {[%emt 0:
01:56]} Bg6 {[%emt 0:03:59]} 24. Re7+ {[%emt 0:05:52]} Rxe7 {[%emt 0:00:18]}
25. fxe7 {[%emt 0:00:06]} Rxf1+ {[%emt 0:00:14]} 26. Kxf1 {[%emt 0:00:14]} Bf6
{[%emt 0:04:24]} 27. Bxf6 {[%emt 0:08:10]} Nxf6 {[%emt 0:00:24]} 28. Ne1 {
[%emt 0:00:13]} Qxe7 {[%emt 0:00:28]} 29. Qf4 {[%emt 0:00:01]} Kg7 {[%emt 0:00:
25]} 30. a3 {[%emt 0:00:18]} b6 {[%emt 0:00:23]} 31. Kf2 {[%emt 0:00:46]} Qe5 {
[%emt 0:00:19]} 0-1

[Event "ETCC Women 2013"]
[Site "Warsaw"]
[Date "2013.11.14"]
[Round "6"]
[White "Gueci, Tea"]
[Black "Benmesbah, Natacha"]
[Result "1/2-1/2"]
[ECO "B32"]
[WhiteElo "2056"]
[BlackElo "2248"]
[PlyCount "90"]
[EventDate "2013.??.??"]
[EventCountry "POL"]
[WhiteTeam "Italy"]
[BlackTeam "France"]
[WhiteTeamCountry "ITA"]
[BlackTeamCountry "FRA"]
[TimeControl "40/5400+30:1800+30"]

1. e4 {[%emt 0:00:00]} c5 {[%emt 0:00:00]} 2. Nf3 {[%emt 0:00:00]} Nc6 {[%emt
0:00:00]} 3. d4 {[%emt 0:00:00]} cxd4 {[%emt 0:00:00]} 4. Nxd4 {[%emt 0:00:00]}
e5 {[%emt 0:00:00]} 5. Nb5 {[%emt 0:01:00]} d6 {[%emt 0:00:00]} 6. N1c3 {[%emt
0:00:58]} a6 {[%emt 0:00:09]} 7. Na3 {[%emt 0:00:10]} Be7 {[%emt 0:00:13]} 8.
Nc4 {[%emt 0:03:00]} b5 {[%emt 0:00:45]} 9. Ne3 {[%emt 0:00:20]} Nf6 {[%emt 0:
00:18]} 10. Ned5 {[%emt 0:03:28]} O-O {[%emt 0:01:16]} 11. Nxf6+ {[%emt 0:08:
06]} Bxf6 {[%emt 0:00:15]} 12. Nd5 {[%emt 0:00:51]} Be6 {[%emt 0:02:29]} 13.
Be3 {[%emt 0:10:41]} Be7 {[%emt 0:03:36]} 14. Be2 {[%emt 0:04:05]} Rc8 {[%emt
0:02:55]} 15. c3 {[%emt 0:01:30]} Bxd5 {[%emt 0:06:34]} 16. Qxd5 {[%emt 0:00:
28]} Qd7 {[%emt 0:11:20]} 17. O-O {[%emt 0:00:48]} h6 {[%emt 0:01:08]} 18. a4 {
[%emt 0:02:28]} Bg5 {[%emt 0:06:22]} 19. Bxg5 {[%emt 0:02:45]} hxg5 {[%emt 0:
00:06]} 20. axb5 {[%emt 0:00:39]} Ne7 {[%emt 0:00:25]} 21. Qd2 {[%emt 0:04:27]}
axb5 {[%emt 0:00:16]} 22. Rfd1 {[%emt 0:01:24]} Ng6 {[%emt 0:07:53]} 23. Qxd6 {
[%emt 0:10:26]} Qb7 {[%emt 0:00:48]} 24. Qb4 {[%emt 0:12:06]} Nf4 {[%emt 0:02:
39]} 25. Bf1 {[%emt 0:11:54]} g4 {[%emt 0:04:25]} 26. Ra5 {[%emt 0:04:45]} Rcd8
{[%emt 0:03:16]} 27. Rda1 {[%emt 0:03:06]} Ra8 {[%emt 0:03:57]} 28. Rxa8 {
[%emt 0:03:48]} Rxa8 {[%emt 0:00:07]} 29. Rxa8+ {[%emt 0:00:54]} Qxa8 {[%emt 0:
00:04]} 30. Qxb5 {[%emt 0:01:59]} Qxe4 {[%emt 0:01:26]} 31. Qc4 {[%emt 0:00:33]
} Qf5 {[%emt 0:07:43]} 32. b4 {[%emt 0:01:33]} e4 {[%emt 0:00:31]} 33. Qd4 {
[%emt 0:01:50]} Ne6 {[%emt 0:02:54]} 34. Qe3 {[%emt 0:01:32]} Qd5 {[%emt 0:03:
34]} 35. c4 {[%emt 0:01:13]} Qe5 {[%emt 0:00:17]} 36. Qa3 {[%emt 0:03:33]} f5 {
[%emt 0:02:02]} 37. c5 {[%emt 0:00:54]} Kh7 {[%emt 0:04:25]} 38. Qg3 {[%emt 0:
00:50]} Qa1 {[%emt 0:02:05]} 39. Qh4+ {[%emt 0:00:41]} Kg6 {[%emt 0:00:53]} 40.
Qe7 {[%emt 0:00:00]} Nd4 {[%emt 0:00:00]} 41. Qe8+ {[%emt 0:04:19]} Kh6 {[%emt
0:11:36]} 42. Qh8+ {[%emt 0:00:26]} Kg6 {[%emt 0:00:06]} 43. Qe8+ {[%emt 0:00:
05]} Kg5 {[%emt 0:02:24]} 44. Qd8+ {[%emt 0:01:45]} Kh5 {[%emt 0:01:43]} 45.
Qh8+ {[%emt 0:00:27]} Kg6 {[%emt 0:00:09]} 1/2-1/2

[Event "ETCC Women 2013"]
[Site "Warsaw"]
[Date "2013.11.14"]
[Round "6"]
[White "Havlikova, Kristyna"]
[Black "Yildiz, Betul Cemre"]
[Result "1/2-1/2"]
[ECO "C70"]
[WhiteElo "2237"]
[BlackElo "2291"]
[PlyCount "118"]
[EventDate "2013.??.??"]
[EventCountry "POL"]
[WhiteTeam "Czech Republic"]
[BlackTeam "Turkey"]
[WhiteTeamCountry "CZE"]
[BlackTeamCountry "TUR"]
[TimeControl "40/5400+30:1800+30"]

1. e4 {[%emt 0:00:00]} e5 {[%emt 0:00:00]} 2. Nf3 {[%emt 0:00:00]} Nc6 {[%emt
0:00:00]} 3. Bb5 {[%emt 0:00:00]} a6 {[%emt 0:00:00]} 4. Ba4 {[%emt 0:00:00]}
Nge7 {[%emt 0:00:00]} 5. Bb3 {[%emt 0:00:24]} d5 {[%emt 0:00:10]} 6. Nc3 {
[%emt 0:00:15]} Be6 {[%emt 0:01:33]} 7. Ng5 {[%emt 0:00:22]} Qd7 {[%emt 0:00:
47]} 8. d3 {[%emt 0:00:30]} d4 {[%emt 0:15:39]} 9. Nxe6 {[%emt 0:23:37]} fxe6 {
[%emt 0:00:55]} 10. Ne2 {[%emt 0:00:05]} Ng6 {[%emt 0:06:22]} 11. O-O {[%emt 0:
07:49]} Bd6 {[%emt 0:02:21]} 12. c3 {[%emt 0:17:11]} dxc3 {[%emt 0:16:43]} 13.
bxc3 {[%emt 0:00:07]} O-O {[%emt 0:00:29]} 14. d4 {[%emt 0:03:18]} exd4 {[%emt
0:10:11]} 15. cxd4 {[%emt 0:00:40]} Kh8 {[%emt 0:00:08]} 16. e5 {[%emt 0:11:00]
} Bb4 {[%emt 0:00:57]} 17. Bc2 {[%emt 0:00:36]} Qf7 {[%emt 0:03:02]} 18. Qd3 {
[%emt 0:07:49]} Nce7 {[%emt 0:05:17]} 19. Rb1 {[%emt 0:06:44]} Ba5 {[%emt 0:02:
55]} 20. Ba3 {[%emt 0:02:38]} Rfd8 {[%emt 0:02:44]} 21. Bxe7 {[%emt 0:06:52]}
Qxe7 {[%emt 0:00:02]} 22. Nf4 {[%emt 0:00:34]} Qf7 {[%emt 0:08:52]} 23. Nh3 {
[%emt 0:01:13]} Nf8 {[%emt 0:01:39]} 24. Rxb7 {[%emt 0:05:30]} Bb6 {[%emt 0:00:
15]} 25. Ng5 {[%emt 0:00:18]} Qh5 {[%emt 0:01:09]} 26. Nf3 {[%emt 0:00:06]} Ng6
{[%emt 0:06:17]} 27. Qc4 {[%emt 0:01:49]} Nf4 {[%emt 0:01:18]} 28. Qc6 {[%emt
0:02:02]} Qg4 {[%emt 0:02:06]} 29. g3 {[%emt 0:00:20]} Nd5 {[%emt 0:03:54]} 30.
Bd1 {[%emt 0:01:39]} Rf8 {[%emt 0:00:29]} 31. Kg2 {[%emt 0:01:09]} Rf7 {[%emt
0:06:00]} 32. Qc1 {[%emt 0:00:39]} Qe4 {[%emt 0:00:34]} 33. Qc2 {[%emt 0:00:39]
} Nf4+ {[%emt 0:01:13]} 34. gxf4 {[%emt 0:00:04]} Qxb7 {[%emt 0:00:04]} 35. Kh3
{[%emt 0:00:08]} Rxf4 {[%emt 0:02:43]} 36. Ng5 {[%emt 0:00:06]} g6 {[%emt 0:00:
30]} 37. Nxe6 {[%emt 0:01:09]} Rf5 {[%emt 0:00:37]} 38. f4 {[%emt 0:00:35]} Re8
{[%emt 0:00:30]} 39. Ng5 {[%emt 0:00:51]} Qd5 {[%emt 0:00:32]} 40. Bg4 {[%emt
0:00:00]} Rff8 {[%emt 0:00:00]} 41. Qb3 {[%emt 0:05:17]} Qxb3+ {[%emt 0:08:52]}
42. axb3 {[%emt 0:00:05]} Bxd4 {[%emt 0:00:13]} 43. Kg2 {[%emt 0:10:40]} Be3 {
[%emt 0:03:28]} 44. Ne6 {[%emt 0:01:55]} Rf7 {[%emt 0:00:56]} 45. Rf3 {[%emt 0:
02:10]} Bb6 {[%emt 0:01:04]} 46. Ng5 {[%emt 0:03:52]} Rfe7 {[%emt 0:01:15]} 47.
Rd3 {[%emt 0:00:07]} Kg7 {[%emt 0:06:05]} 48. h4 {[%emt 0:01:36]} h6 {[%emt 0:
00:52]} 49. Ne4 {[%emt 0:01:57]} Rf8 {[%emt 0:00:04]} 50. Kg3 {[%emt 0:01:20]}
Ref7 {[%emt 0:02:51]} 51. Nf6 {[%emt 0:01:30]} Rxf6 {[%emt 0:07:22]} 52. exf6+
{[%emt 0:00:03]} Kxf6 {[%emt 0:00:02]} 53. h5 {[%emt 0:00:41]} Bc5 {[%emt 0:02:
39]} 54. hxg6 {[%emt 0:04:51]} Kxg6 {[%emt 0:00:02]} 55. Kf3 {[%emt 0:01:04]}
Bd6 {[%emt 0:00:09]} 56. Rd4 {[%emt 0:00:35]} h5 {[%emt 0:02:18]} 57. Be6 {
[%emt 0:00:09]} Rb8 {[%emt 0:00:42]} 58. Bc4 {[%emt 0:00:26]} Kf6 {[%emt 0:00:
31]} 59. Rd5 {[%emt 0:00:24]} Rh8 {[%emt 0:00:33]} 1/2-1/2

[Event "ETCC Women 2013"]
[Site "Warsaw"]
[Date "2013.11.14"]
[Round "6"]
[White "Heinatz, Dr. Gundula"]
[Black "Corke, Anya S"]
[Result "1/2-1/2"]
[ECO "A40"]
[WhiteElo "2169"]
[BlackElo "2276"]
[PlyCount "95"]
[EventDate "2013.??.??"]
[EventCountry "POL"]
[WhiteTeam "Switzerland"]
[BlackTeam "England"]
[WhiteTeamCountry "SUI"]
[BlackTeamCountry "ENG"]
[TimeControl "40/5400+30:1800+30"]

1. d4 {[%emt 0:00:00]} e6 {[%emt 0:00:00]} 2. Nf3 {[%emt 0:00:00]} c5 {[%emt 0:
00:00]} 3. g3 {[%emt 0:03:16]} d5 {[%emt 0:04:02]} 4. Bg2 {[%emt 0:00:54]} Nc6
{[%emt 0:00:16]} 5. O-O {[%emt 0:00:35]} Nf6 {[%emt 0:01:19]} 6. c4 {[%emt 0:
02:12]} h6 {[%emt 0:10:59]} 7. cxd5 {[%emt 0:02:27]} exd5 {[%emt 0:00:39]} 8.
Nc3 {[%emt 0:00:06]} Be7 {[%emt 0:08:13]} 9. a3 {[%emt 0:07:16]} cxd4 {[%emt 0:
04:35]} 10. Nxd4 {[%emt 0:03:37]} O-O {[%emt 0:01:29]} 11. Bf4 {[%emt 0:01:41]}
Bg4 {[%emt 0:09:53]} 12. h3 {[%emt 0:01:22]} Be6 {[%emt 0:02:26]} 13. Rc1 {
[%emt 0:03:28]} Qd7 {[%emt 0:04:26]} 14. Kh2 {[%emt 0:00:52]} Rac8 {[%emt 0:06:
05]} 15. Be3 {[%emt 0:07:57]} Rfd8 {[%emt 0:06:01]} 16. Qa4 {[%emt 0:04:31]} a6
{[%emt 0:05:32]} 17. Nxe6 {[%emt 0:03:05]} fxe6 {[%emt 0:12:54]} 18. Bb6 {
[%emt 0:00:20]} Rf8 {[%emt 0:00:47]} 19. f4 {[%emt 0:02:06]} Nb8 {[%emt 0:04:
58]} 20. Qb3 {[%emt 0:07:05]} Kh8 {[%emt 0:07:16]} 21. Rcd1 {[%emt 0:05:56]}
Qc6 {[%emt 0:01:34]} 22. Rc1 {[%emt 0:05:56]} Qd7 {[%emt 0:00:31]} 23. Rfd1 {
[%emt 0:06:58]} Bd6 {[%emt 0:02:45]} 24. Rd3 {[%emt 0:05:43]} Nh5 {[%emt 0:01:
13]} 25. Rf1 {[%emt 0:02:03]} Qe7 {[%emt 0:02:03]} 26. e3 {[%emt 0:01:00]} Nd7
{[%emt 0:00:35]} 27. Bd4 {[%emt 0:05:43]} Nc5 {[%emt 0:00:03]} 28. Bxc5 {[%emt
0:00:17]} Bxc5 {[%emt 0:00:21]} 29. e4 {[%emt 0:01:39]} d4 {[%emt 0:00:44]} 30.
Ne2 {[%emt 0:03:12]} e5 {[%emt 0:00:59]} 31. Qd5 {[%emt 0:01:29]} Bd6 {[%emt 0:
00:50]} 32. Nxd4 {[%emt 0:09:36]} Rc5 {[%emt 0:01:33]} 33. Qb3 {[%emt 0:00:49]}
exd4 {[%emt 0:00:52]} 34. e5 {[%emt 0:00:01]} Bc7 {[%emt 0:00:31]} 35. Rxd4 {
[%emt 0:00:45]} Rb5 {[%emt 0:00:23]} 36. Qd1 {[%emt 0:02:36]} Bb6 {[%emt 0:00:
35]} 37. Rd7 {[%emt 0:00:30]} Qe8 {[%emt 0:00:29]} 38. b4 {[%emt 0:01:00]} Qg6
{[%emt 0:00:30]} 39. Qg4 {[%emt 0:00:30]} Qe8 {[%emt 0:00:34]} 40. Be4 {[%emt
0:00:00]} Rxe5 {[%emt 0:00:00]} 41. fxe5 {[%emt 0:08:02]} Rxf1 {[%emt 0:01:19]}
42. Rxb7 {[%emt 0:03:11]} Rf2+ {[%emt 0:11:20]} 43. Kh1 {[%emt 0:01:44]} Qf8 {
[%emt 0:04:42]} 44. h4 {[%emt 0:00:25]} Re2 {[%emt 0:11:12]} 45. Bf3 {[%emt 0:
05:23]} Re3 {[%emt 0:00:47]} 46. Kg2 {[%emt 0:01:52]} Bd4 {[%emt 0:02:48]} 47.
Qxh5 {[%emt 0:00:34]} Bxe5 {[%emt 0:00:37]} 48. Qf7 {[%emt 0:02:05]} 1/2-1/2

[Event "ETCC Women 2013"]
[Site "Warsaw"]
[Date "2013.11.14"]
[Round "6"]
[White "Johannsdottir, Johanna Bjorg"]
[Black "Puuska, Heini"]
[Result "0-1"]
[ECO "B06"]
[WhiteElo "1901"]
[BlackElo "1982"]
[PlyCount "134"]
[EventDate "2013.??.??"]
[EventCountry "POL"]
[WhiteTeam "Iceland"]
[BlackTeam "Finland"]
[WhiteTeamCountry "ISL"]
[BlackTeamCountry "FIN"]
[TimeControl "40/5400+30:1800+30"]

1. e4 {[%emt 0:00:00]} g6 {[%emt 0:00:00]} 2. d4 {[%emt 0:00:00]} Bg7 {[%emt 0:
00:00]} 3. Nf3 {[%emt 0:00:23]} d6 {[%emt 0:00:13]} 4. Bc4 {[%emt 0:00:26]} Nf6
{[%emt 0:02:08]} 5. Nbd2 {[%emt 0:00:16]} O-O {[%emt 0:01:26]} 6. O-O {[%emt 0:
00:15]} Nc6 {[%emt 0:03:20]} 7. Re1 {[%emt 0:00:52]} e5 {[%emt 0:02:07]} 8. c3
{[%emt 0:01:50]} Nh5 {[%emt 0:06:28]} 9. dxe5 {[%emt 0:03:36]} dxe5 {[%emt 0:
02:20]} 10. h3 {[%emt 0:01:02]} Nf4 {[%emt 0:03:09]} 11. Nf1 {[%emt 0:02:11]}
Be6 {[%emt 0:05:59]} 12. Bb5 {[%emt 0:03:31]} Qf6 {[%emt 0:04:13]} 13. Bxc6 {
[%emt 0:00:58]} bxc6 {[%emt 0:00:07]} 14. Be3 {[%emt 0:00:18]} Rfd8 {[%emt 0:
00:48]} 15. N1d2 {[%emt 0:01:16]} h6 {[%emt 0:01:49]} 16. Bxf4 {[%emt 0:02:22]}
Qxf4 {[%emt 0:00:43]} 17. Qe2 {[%emt 0:00:13]} g5 {[%emt 0:09:36]} 18. Nf1 {
[%emt 0:05:04]} g4 {[%emt 0:02:09]} 19. hxg4 {[%emt 0:00:07]} Bxg4 {[%emt 0:00:
56]} 20. N1h2 {[%emt 0:00:14]} Be6 {[%emt 0:03:16]} 21. Qe3 {[%emt 0:02:22]}
Qf6 {[%emt 0:02:17]} 22. b3 {[%emt 0:00:42]} a5 {[%emt 0:01:20]} 23. c4 {[%emt
0:01:32]} Rd6 {[%emt 0:06:20]} 24. Re2 {[%emt 0:03:41]} a4 {[%emt 0:01:07]} 25.
Rb1 {[%emt 0:01:50]} axb3 {[%emt 0:00:54]} 26. axb3 {[%emt 0:00:25]} Qd8 {
[%emt 0:02:20]} 27. Qc3 {[%emt 0:01:45]} Rd3 {[%emt 0:02:45]} 28. Qc2 {[%emt 0:
03:22]} Rb8 {[%emt 0:09:17]} 29. Ne1 {[%emt 0:01:55]} Rd6 {[%emt 0:01:34]} 30.
Re3 {[%emt 0:00:22]} Rd2 {[%emt 0:01:33]} 31. Qc3 {[%emt 0:02:13]} Qd6 {[%emt
0:05:34]} 32. Nd3 {[%emt 0:00:27]} Ra2 {[%emt 0:00:26]} 33. Nf3 {[%emt 0:00:20]
} f5 {[%emt 0:05:19]} 34. exf5 {[%emt 0:00:52]} Bxf5 {[%emt 0:01:38]} 35. Nfxe5
{[%emt 0:02:53]} Bxd3 {[%emt 0:01:50]} 36. Qxd3 {[%emt 0:00:13]} Bxe5 {[%emt 0:
00:52]} 37. Qf5 {[%emt 0:00:32]} Bg7 {[%emt 0:02:52]} 38. Rbe1 {[%emt 0:01:58]}
Rf8 {[%emt 0:02:53]} 39. Re8 {[%emt 0:00:05]} Qf6 {[%emt 0:02:28]} 40. Rxf8+ {
[%emt 0:00:00]} Qxf8 {[%emt 0:00:00]} 41. Qe6+ {[%emt 0:01:14]} Kh8 {[%emt 0:
06:17]} 42. f3 {[%emt 0:00:55]} Qc5+ {[%emt 0:04:31]} 43. Kh2 {[%emt 0:00:53]}
Qh5+ {[%emt 0:00:50]} 44. Qh3 {[%emt 0:00:28]} Be5+ {[%emt 0:02:39]} 45. Kh1 {
[%emt 0:00:14]} Qxh3+ {[%emt 0:00:57]} 46. gxh3 {[%emt 0:00:04]} Ra1 {[%emt 0:
01:29]} 47. Rxa1 {[%emt 0:00:08]} Bxa1 {[%emt 0:00:05]} 48. f4 {[%emt 0:00:07]}
Kg7 {[%emt 0:00:22]} 49. Kg2 {[%emt 0:00:03]} Kf6 {[%emt 0:00:16]} 50. Kg3 {
[%emt 0:00:09]} Kf5 {[%emt 0:00:40]} 51. Kf3 {[%emt 0:00:04]} Bd4 {[%emt 0:02:
08]} 52. b4 {[%emt 0:00:06]} Bc3 {[%emt 0:01:26]} 53. b5 {[%emt 0:00:11]} cxb5
{[%emt 0:00:12]} 54. cxb5 {[%emt 0:00:03]} Bd2 {[%emt 0:00:39]} 55. Kg3 {[%emt
0:00:02]} Bxf4+ {[%emt 0:00:26]} 56. Kh4 {[%emt 0:00:02]} Ke5 {[%emt 0:01:14]}
57. Kg4 {[%emt 0:00:07]} Bd2 {[%emt 0:00:23]} 58. h4 {[%emt 0:00:04]} Kd5 {
[%emt 0:00:22]} 59. h5 {[%emt 0:00:06]} Kc5 {[%emt 0:00:39]} 60. Kf3 {[%emt 0:
00:03]} Kxb5 {[%emt 0:00:22]} 61. Ke2 {[%emt 0:00:04]} Bg5 {[%emt 0:00:28]} 62.
Kd3 {[%emt 0:00:02]} Kb4 {[%emt 0:00:42]} 63. Kc2 {[%emt 0:00:04]} c5 {[%emt 0:
01:13]} 64. Kb2 {[%emt 0:00:04]} Kc4 {[%emt 0:00:55]} 65. Kc2 {[%emt 0:00:10]}
Bf4 {[%emt 0:00:21]} 66. Kb2 {[%emt 0:00:13]} Kd3 {[%emt 0:00:16]} 67. Ka2 {
[%emt 0:00:09]} c4 {[%emt 0:00:43]} 0-1

[Event "ETCC Women 2013"]
[Site "Warsaw"]
[Date "2013.11.14"]
[Round "6"]
[White "Kadziolka, Beata"]
[Black "Kachiani-Gersinska, Ketino"]
[Result "1/2-1/2"]
[ECO "B10"]
[WhiteElo "2327"]
[BlackElo "2365"]
[PlyCount "115"]
[EventDate "2013.??.??"]
[EventCountry "POL"]
[WhiteTeam "Poland"]
[BlackTeam "Germany"]
[WhiteTeamCountry "POL"]
[BlackTeamCountry "GER"]
[TimeControl "40/5400+30:1800+30"]

1. e4 {[%emt 0:00:00]} c6 {[%emt 0:02:23]} 2. c4 {[%emt 0:00:00]} e5 {[%emt 0:
04:18]} 3. Nf3 {[%emt 0:00:00]} d6 {[%emt 0:00:25]} 4. d4 {[%emt 0:00:28]} Nd7
{[%emt 0:00:07]} 5. Nc3 {[%emt 0:00:17]} Ngf6 {[%emt 0:00:22]} 6. Be2 {[%emt 0:
00:15]} Be7 {[%emt 0:00:19]} 7. O-O {[%emt 0:00:09]} O-O {[%emt 0:00:08]} 8.
Re1 {[%emt 0:00:17]} Qe8 {[%emt 0:03:49]} 9. Rb1 {[%emt 0:14:35]} Bd8 {[%emt 0:
00:30]} 10. Bf1 {[%emt 0:01:58]} Qe7 {[%emt 0:02:49]} 11. h3 {[%emt 0:13:25]}
Bc7 {[%emt 0:00:42]} 12. Be3 {[%emt 0:06:45]} Rd8 {[%emt 0:03:17]} 13. Qc2 {
[%emt 0:08:04]} Nf8 {[%emt 0:12:18]} 14. b4 {[%emt 0:06:31]} Ng6 {[%emt 0:11:
22]} 15. b5 {[%emt 0:10:37]} Ba5 {[%emt 0:11:16]} 16. Nd2 {[%emt 0:07:28]} Bxc3
{[%emt 0:17:19]} 17. Qxc3 {[%emt 0:00:07]} c5 {[%emt 0:00:07]} 18. dxc5 {[%emt
0:09:16]} dxc5 {[%emt 0:00:10]} 19. g3 {[%emt 0:03:21]} b6 {[%emt 0:03:07]} 20.
Bg2 {[%emt 0:01:52]} Bb7 {[%emt 0:00:28]} 21. Bg5 {[%emt 0:03:16]} Rd7 {[%emt
0:05:40]} 22. Qa3 {[%emt 0:05:08]} Qe6 {[%emt 0:03:15]} 23. Rec1 {[%emt 0:04:
43]} h6 {[%emt 0:00:38]} 24. Be3 {[%emt 0:00:27]} Rad8 {[%emt 0:00:22]} 25. Rc2
{[%emt 0:00:44]} Nf8 {[%emt 0:06:17]} 26. Kh2 {[%emt 0:02:05]} Ba8 {[%emt 0:00:
07]} 27. f3 {[%emt 0:00:28]} Nh5 {[%emt 0:00:34]} 28. Nf1 {[%emt 0:00:39]} f5 {
[%emt 0:00:55]} 29. Bf2 {[%emt 0:00:32]} f4 {[%emt 0:01:07]} 30. g4 {[%emt 0:
00:16]} Nf6 {[%emt 0:00:06]} 31. Rbb2 {[%emt 0:00:15]} g5 {[%emt 0:02:35]} 32.
Qc3 {[%emt 0:01:04]} h5 {[%emt 0:02:32]} 33. Rd2 {[%emt 0:00:07]} hxg4 {[%emt
0:00:10]} 34. hxg4 {[%emt 0:00:05]} Bxe4 {[%emt 0:03:52]} 35. fxe4 {[%emt 0:00:
28]} Nxg4+ {[%emt 0:00:07]} 36. Kg1 {[%emt 0:00:12]} Nxf2 {[%emt 0:00:24]} 37.
Kxf2 {[%emt 0:00:48]} Rd4 {[%emt 0:01:19]} 38. Qh3 {[%emt 0:01:06]} g4 {[%emt
0:00:19]} 39. Qh4 {[%emt 0:00:23]} R8d7 {[%emt 0:00:16]} 40. Rxd4 {[%emt 0:00:
00]} cxd4 {[%emt 0:00:00]} 41. Nd2 {[%emt 0:03:19]} Qg6 {[%emt 0:05:44]} 42.
Rb1 {[%emt 0:03:46]} g3+ {[%emt 0:08:27]} 43. Kg1 {[%emt 0:10:40]} d3 {[%emt 0:
03:56]} 44. Bh3 {[%emt 0:04:07]} Rg7 {[%emt 0:03:16]} 45. Qd8 {[%emt 0:03:57]}
Qh5 {[%emt 0:07:21]} 46. Bg2 {[%emt 0:06:31]} Qe2 {[%emt 0:01:21]} 47. Nf3 {
[%emt 0:01:01]} Qf2+ {[%emt 0:05:48]} 48. Kh1 {[%emt 0:00:00]} Rh7+ {[%emt 0:
00:43]} 49. Nh4 {[%emt 0:00:03]} d2 {[%emt 0:00:09]} 50. Qd5+ {[%emt 0:00:57]}
Kg7 {[%emt 0:00:49]} 51. Qxe5+ {[%emt 0:00:20]} Kf7 {[%emt 0:00:04]} 52. Qf5+ {
[%emt 0:00:52]} Ke7 {[%emt 0:00:17]} 53. Qg5+ {[%emt 0:00:22]} Ke8 {[%emt 0:00:
44]} 54. Qe5+ {[%emt 0:00:19]} Kd8 {[%emt 0:00:28]} 55. Qg5+ {[%emt 0:00:42]}
Kc7 {[%emt 0:01:17]} 56. Qe5+ {[%emt 0:00:18]} Kd8 {[%emt 0:00:20]} 57. Qf6+ {
[%emt 0:01:08]} Ke8 {[%emt 0:00:08]} 58. Qe5+ {[%emt 0:00:18]} 1/2-1/2